Workbook

Sheet город
A1: Школа | C1: МБОУ "Гимназия №3 ЗМР РТ" | F1: Утвердил: | G1: директор | H1: МБОУ "Гимназия №3 ЗМР РТ"
A2: Типовое примерное меню приготавливаемых блюд | G2: фамилия | H2: Ильина М.А.
A3: Возрастная категория | E3: 7-11 лет | G3: дата | H3: 1 | I3: 9 | J3: 2024
H4: день | I4: месяц | J4: год
A5: Неделя | B5: День недели | C5: Прием пищи | D5: Раздел меню | E5: Блюда | F5: Вес блюда, г | G5: Белки | H5: Жиры | I5: Углеводы | J5: Калорийность | K5: № рецептуры | L5: Цена
A6: 1 | B6: 1 | C6: Завтрак | D6: гарнир | E6: Каша пшеничная вязкая молочная с маслом сливочным, сыр твёрдый порционно, 180/5/15 | F6: 200 | G6: 11 | H6: 11 | I6: 39 | J6: 299 | K6: №510 табл.4, №97 сб.2004 г. | L6: 30.60
D7: гор.напиток | E7: Чай с сахаром и лимоном, 200/15/7 | F7: 222 | G7: 0 | H7: 0 | I7: 15 | J7: 59 | K7: №686 сб.2004 г. | L7: 5.70
D8: хлеб | E8: Хлеб (порциями) | F8: 28 | G8: 2 | H8: 0 | I8: 13 | J8: 87 | K8: №1 сб.2004 г. | L8: 2.46
D9: сладкое | E9: Пирожное песочное Лакомка, 1 шт | F9: 50 | G9: 2 | H9: 14 | I9: 32 | J9: 227 | L9: 28.00
D13: итого | F13: =SUM(F6:F12) -> 500 | G13: 15.04 | H13: 25.01 | I13: 99.3 | J13: 672 | L13: =SUM(L6:L12) -> 66.76
A14: =A6 -> 1 | B14: 1 | C14: Обед | D14: закуска
D15: 1 блюдо
D16: 2 блюдо
D17: гарнир
D18: напиток
D19: хлеб бел.
D20: хлеб черн.
D23: итого | F23: =SUM(F14:F22) -> 0 | G23: 0 | H23: 0 | I23: 0 | J23: 0 | L23: =SUM(L14:L22) -> 0
A24: =A6 -> 1 | B24: 1 | C24: Итого за день: | F24: =F13+F23 -> 500 | G24: 15.04 | H24: 25.01 | I24: 99.3 | J24: 672 | L24: =L13+L23 -> 66.76
A25: 1 | B25: 2 | C25: Завтрак | D25: 2 блюдо | E25: Котлеты Любительские с соусом красным основным, 80/20 | F25: 100 | G25: 12 | H25: 11 | I25: 12 | J25: 205 | K25: ТТК №286, ТТК №362 | L25: =47.8+0.8 -> 48.60
D26: гарнир | E26: Макаронные изделия отварные | F26: 170 | G26: 6 | H26: 5 | I26: 36 | J26: 213 | K26: №516 сб. 2004 г. | L26: 10.20
D27: гор. напиток | E27: Чай с сахаром и лимоном, 200/15/5 | F27: 220 | G27: 0 | H27: 0 | I27: 15 | J27: 58 | K27: №686 сб.2004 г. | L27: 4.90
D28: хлеб | E28: Хлеб (порциями) | F28: 33 | G28: 2 | H28: 0 | I28: 15 | J28: 102 | K28: №1 сб.2004 г. | L28: 3.06
D32: итого | F32: =SUM(F25:F31) -> 523 | G32: 20.23 | H32: 16.53 | I32: 77.9 | J32: 578 | L32: =SUM(L25:L31) -> 66.76
A33: =A25 -> 1 | B33: 2 | C33: Обед | D33: закуска
D34: 1 блюдо
D35: 2 блюдо
D36: гарнир
D37: напиток
D38: хлеб бел.
D39: хлеб черн.
D42: итого | F42: =SUM(F33:F41) -> 0 | G42: 0 | H42: 0 | I42: 0 | J42: 0 | L42: =SUM(L33:L41) -> 0
A43: =A25 -> 1 | B43: 2 | C43: Итого за день: | F43: =F32+F42 -> 523 | G43: 20.23 | H43: 16.53 | I43: 77.9 | J43: 578 | L43: =L32+L42 -> 66.76
A44: 1 | B44: 3 | C44: Завтрак | D44: 2 блюдо | E44: Картофель тушеный с филе птицы рубленым (фарш) с доп.гарниром овощи свежие (огурцы) порционно, 200/15 | F44: 215 | G44: 15 | H44: 10 | I44: 21 | J44: 236 | K44: ТТК №100С, табл.№24 сб. 1996 г. | L44: =52.3+3.7 -> 56.00
D45: гор.напиток | E45: Чай с сахаром, 200/15 | F45: 215 | G45: 0 | H45: 0 | I45: 15 | J45: 57 | K45: ТТК №512С | L45: 3.10
D46: хлеб | E46: Хлеб (порциями) | F46: 40 | G46: 2 | H46: 0 | I46: 18 | J46: 124 | K46: №1 сб.2004 г. | L46: 2.46
D47: сладкое | E47: Печенье формовое, 2 шт | F47: 30 | G47: 2 | H47: 5 | I47: 21 | J47: 141 | L47: =2.6*2 -> 5.20
D51: итого | F51: =SUM(F44:F50) -> 500 | G51: 19.89 | H51: 16.1 | I51: 74.37 | J51: 558 | L51: =SUM(L44:L50) -> 66.76
A52: =A44 -> 1 | B52: 3 | C52: Обед | D52: закуска
D53: 1 блюдо
D54: 2 блюдо
D55: гарнир
D56: напиток
D57: хлеб бел.
D58: хлеб черн.
D61: итого | F61: =SUM(F52:F60) -> 0 | G61: 0 | H61: 0 | I61: 0 | J61: 0 | L61: =SUM(L52:L60) -> 0
A62: =A44 -> 1 | B62: 3 | C62: Итого за день: | F62: =F51+F61 -> 500 | G62: 19.89 | H62: 16.1 | I62: 74.37 | J62: 558 | L62: =L51+L61 -> 66.76
A63: 1 | B63: 4 | C63: Завтрак | D63: закуска | E63: Свекла отварная | F63: 60 | G63: 1 | H63: 0 | I63: 5 | J63: 18 | K63: ТТК №601С | L63: 5.80
D64: 2 блюдо | E64: Плов с мясом говядины рубленным (фарш), 30/150 | F64: 180 | G64: 13 | H64: 13 | I64: 40 | J64: 326 | K64: ТТК №107С | L64: 49.00
D65: гор.напиток | E65: Чай с сахаром, 200/15 | F65: 215 | G65: 0 | H65: 0 | I65: 15 | J65: 57 | K65: №685 сб. 2004 г. | L65: 3.10
D66: хлеб | E66: Хлеб (порциями) | F66: 31 | G66: 2 | H66: 0 | I66: 14 | J66: 96 | K66: №1 сб.2004 г. | L66: 2.86
D67: сладкое | E67: Вафли неглазированные Белек, 1 шт | F67: 20 | G67: 1 | H67: 5 | I67: 9 | J67: 99 | L67: 6.00
D70: итого | F70: =SUM(F63:F69) -> 506 | G70: 16.47 | H70: 17.63 | I70: 82.21 | J70: 596 | L70: =SUM(L63:L69) -> 66.76
A71: =A63 -> 1 | B71: 4 | C71: Обед | D71: закуска
D72: 1 блюдо
D73: 2 блюдо
D74: гарнир
D75: напиток
D76: хлеб бел.
D77: хлеб черн.
D80: итого | F80: =SUM(F71:F79) -> 0 | G80: 0 | H80: 0 | I80: 0 | J80: 0 | L80: =SUM(L71:L79) -> 0
A81: =A63 -> 1 | B81: 4 | C81: Итого за день: | F81: =F70+F80 -> 506 | G81: 16.47 | H81: 17.63 | I81: 82.21 | J81: 596 | L81: =L70+L80 -> 66.76
A82: 1 | B82: 5 | C82: Завтрак | D82: 2 блюдо | E82: Цыплята отварные (голень) | F82: 100 | G82: 21 | H82: 15 | I82: 4 | J82: 250 | K82: ТТК №601С | L82: 50.20
D83: гарнир | E83: Каша гречневая вязкая | F83: 170 | G83: 5 | H83: 6 | I83: 25 | J83: 179 | K83: №510 табл.4 сб.2004 г. | L83: 10.90
D84: гор.напиток | E84: Чай с сахаром, 200/15 | F84: 215 | G84: 0 | H84: 0 | I84: 15 | J84: 57 | K84: №685 сб. 2004 г. | L84: 3.10
D85: хлеб | E85: Хлеб (порциями) | F85: 28 | G85: 2 | H85: 0 | I85: 13 | J85: 87 | K85: №1 сб.2004 г. | L85: 2.56
D89: итого | F89: =SUM(F82:F88) -> 513 | G89: 27.63 | H89: 21.9 | I89: 56.31 | J89: 573 | L89: =SUM(L82:L88) -> 66.76
A90: =A82 -> 1 | B90: 5 | C90: Обед | D90: закуска
D91: 1 блюдо
D92: 2 блюдо
D93: гарнир
D94: напиток
D95: хлеб бел.
D96: хлеб черн.
D99: итого | F99: =SUM(F90:F98) -> 0 | G99: 0 | H99: 0 | I99: 0 | J99: 0 | L99: =SUM(L90:L98) -> 0
A100: =A82 -> 1 | B100: 5 | C100: Итого за день: | F100: =F89+F99 -> 513 | G100: 27.63 | H100: 21.9 | I100: 56.31 | J100: 573 | L100: =L89+L99 -> 66.76
A101: 2 | B101: 1 | C101: Завтрак | D101: 2 блюдо | E101: Биточки Дружба с соусом красным основным, 80/20 | F101: 100 | G101: 10 | H101: 11 | I101: 10 | J101: 180 | K101: ТТК №355, ТТК №362 | L101: =50+0.8 -> 50.80
D102: гарнир | E102: Макаронные изделия отварные | F102: 170 | G102: 6 | H102: 5 | I102: 36 | J102: 213 | K102: №516 сб. 2004 г. | L102: 10.20
D103: гор. напиток | E103: Чай с сахаром, 200/15 | F103: 215 | G103: 0 | H103: 0 | I103: 15 | J103: 57 | K103: №685 сб. 2004 г. | L103: 3.10
D104: хлеб | E104: Хлеб (порциями) | F104: 29 | G104: 2 | H104: 0 | I104: 13 | J104: 90 | K104: №1 сб.2004 г. | L104: 2.66
D108: итого | F108: =SUM(F101:F107) -> 514 | G108: 17.41 | H108: 16.63 | I108: 74.55 | J108: 540 | L108: =SUM(L101:L107) -> 66.76
A109: =A101 -> 2 | B109: 1 | C109: Обед | D109: закуска
D110: 1 блюдо
D111: 2 блюдо
D112: гарнир
D113: напиток
D114: хлеб бел.
D115: хлеб черн.
D118: итого | F118: =SUM(F109:F117) -> 0 | G118: 0 | H118: 0 | I118: 0 | J118: 0 | L118: =SUM(L109:L117) -> 0
A119: =A101 -> 2 | B119: 1 | C119: Итого за день: | F119: =F108+F118 -> 514 | G119: 17.41 | H119: 16.63 | I119: 74.55 | J119: 540 | L119: =L108+L118 -> 66.76
A120: 2 | B120: 2 | C120: Завтрак | D120: 2 блюдо | E120: Сосиски для детского питания отварные с соусом красным основным, 80/10 | F120: 90 | G120: 9 | H120: 19 | I120: 2 | J120: 217 | K120: №413 сб. 2004 г., ТТК №362 | L120: =47.3+0.4 -> 47.70
D121: гарнир | E121: Каша гречневая вязкая | F121: 170 | G121: 5 | H121: 6 | I121: 25 | J121: 179 | K121: №510 табл.4 сб.2004 г. | L121: 10.90
D122: гор. напиток | E122: Чай с сахаром и лимоном, 200/15/7 | F122: 222 | G122: 0 | H122: 0 | I122: 15 | J122: 59 | K122: №686 сб.2004 г. | L122: 5.70
D123: хлеб | E123: Хлеб (порциями) | F123: 27 | G123: 1 | H123: 0 | I123: 12 | J123: 84 | K123: №1 сб.2004 г. | L123: 2.46
D127: итого | F127: =SUM(F120:F126) -> 509 | G127: 15.73 | H127: 25.9 | I127: 54.4 | J127: 539 | L127: =SUM(L120:L126) -> 66.76
A128: =A120 -> 2 | B128: 2 | C128: Обед | D128: закуска
D129: 1 блюдо
D130: 2 блюдо
D131: гарнир
D132: напиток
D133: хлеб бел.
D134: хлеб черн.
D137: итого | F137: =SUM(F128:F136) -> 0 | G137: 0 | H137: 0 | I137: 0 | J137: 0 | L137: =SUM(L128:L136) -> 0
A138: =A120 -> 2 | B138: 2 | C138: Итого за день: | F138: =F127+F137 -> 509 | G138: 15.73 | H138: 25.9 | I138: 54.4 | J138: 539 | L138: =L127+L137 -> 66.76
A139: 2 | B139: 3 | C139: Завтрак | D139: 2 блюдо | E139: Гуляш из филе птицы, 50/50 | F139: 100 | G139: 13 | H139: 16 | I139: 4 | J139: 211 | K139: №437 сб.2004 г. | L139: 48.60
D140: гарнир | E140: Каша пшеничная вязкая с доп.гарниром овощи свежие (огурцы) порционно, 150/15 | F140: 165 | G140: 4 | H140: 5 | I140: 25 | J140: 158 | K140: №510 табл.4 сб.2004 г., табл.№24 сб. 1996 г. | L140: =6.7+3.7 -> 10.40
D141: гор.напиток | E141: Чай полусладкий с курагой, 200/10/7 | F141: 217 | G141: 1 | H141: 0 | I141: 14 | J141: 54 | K141: ТТК №514С | L141: 6.00
D142: хлеб | E142: Хлеб (порциями) | F142: 20 | G142: 1 | H142: 0 | I142: 9 | J142: 62 | K142: №1 сб.2004 г. | L142: 1.76
D146: итого | F146: =SUM(F139:F145) -> 502 | G146: 18.73 | H146: 21.32 | I146: 50.92 | J146: 485 | L146: =SUM(L139:L145) -> 66.76
A147: =A139 -> 2 | B147: 3 | C147: Обед | D147: закуска
D148: 1 блюдо
D149: 2 блюдо
D150: гарнир
D151: напиток
D152: хлеб бел.
D153: хлеб черн.
D156: итого | F156: =SUM(F147:F155) -> 0 | G156: 0 | H156: 0 | I156: 0 | J156: 0 | L156: =SUM(L147:L155) -> 0
A157: =A139 -> 2 | B157: 3 | C157: Итого за день: | F157: =F146+F156 -> 502 | G157: 18.73 | H157: 21.32 | I157: 50.92 | J157: 485 | L157: =L146+L156 -> 66.76
A158: 2 | B158: 4 | C158: Завтрак | D158: 2 блюдо | E158: Котлеты Любительские с соусом красным основным, 80/10 | F158: 90 | G158: 12 | H158: 11 | I158: 11 | J158: 202 | K158: ТТК №286, ТТК №362 | L158: =47.8+0.4 -> 48.20
D159: гарнир | E159: Макаронные изделия отварные | F159: 150 | G159: 5 | H159: 5 | I159: 32 | J159: 187 | K159: №516 сб. 2004 г. | L159: 9.00
D160: гор.напиток | E160: Чай полусладкий, 200/10 | F160: 210 | G160: 0 | H160: 0 | I160: 10 | J160: 40 | K160: ТТК №512С | L160: 2.40
D161: хлеб | E161: Хлеб (порциями) | F161: 21 | G161: 1 | H161: 0 | I161: 9 | J161: 65 | K161: №1 сб.2004 г. | L161: 1.96
D162: сладкое | E162: Печенье формовое, 2 шт | F162: 30 | G162: 2 | H162: 5 | I162: 21 | J162: 141 | L162: 5.20
D165: итого | F165: =SUM(F158:F164) -> 501 | G165: 20.75 | H165: 21 | I165: 83.41 | J165: 635 | L165: =SUM(L158:L164) -> 66.76
A166: =A158 -> 2 | B166: 4 | C166: Обед | D166: закуска
D167: 1 блюдо
D168: 2 блюдо
D169: гарнир
D170: напиток
D171: хлеб бел.
D172: хлеб черн.
D175: итого | F175: =SUM(F166:F174) -> 0 | G175: 0 | H175: 0 | I175: 0 | J175: 0 | L175: =SUM(L166:L174) -> 0
A176: =A158 -> 2 | B176: 4 | C176: Итого за день: | F176: =F165+F175 -> 501 | G176: 20.75 | H176: 21 | I176: 83.41 | J176: 635 | L176: =L165+L175 -> 66.76
A177: 2 | B177: 5 | C177: Завтрак | D177: 2 блюдо | E177: Рыба, тушенная в томате с овощами (филе минтая) | F177: 100 | G177: 10 | H177: 5 | I177: 9 | J177: 109 | K177: №374 сб.2004 г. | L177: 37.10
D178: гарнир | E178: Пюре картофельное | F178: 170 | G178: 4 | H178: 6 | I178: 21 | J178: 165 | K178: №520 сб.2004 г. | L178: 20.20
D179: напиток | E179: Напиток из шиповника с апельсином | F179: 200 | G179: 0 | H179: 0 | I179: 17 | J179: 66 | K179: ТТК №501С | L179: 6.80
D180: хлеб | E180: Хлеб (порциями) | F180: 30 | G180: 2 | H180: 0 | I180: 14 | J180: 93 | K180: №1 сб.2004 г. | L180: 2.66
D184: итого | F184: =SUM(F177:F183) -> 500 | G184: 15.17 | H184: 11.12 | I184: 60.05 | J184: 433 | L184: =SUM(L177:L183) -> 66.76
A185: =A177 -> 2 | B185: 5 | C185: Обед | D185: закуска
D186: 1 блюдо
D187: 2 блюдо
D188: гарнир
D189: напиток
D190: хлеб бел.
D191: хлеб черн.
D194: итого | F194: =SUM(F185:F193) -> 0 | G194: 0 | H194: 0 | I194: 0 | J194: 0 | L194: =SUM(L185:L193) -> 0
A195: =A177 -> 2 | B195: 5 | C195: Итого за день: | F195: =F184+F194 -> 500 | G195: 15.17 | H195: 11.12 | I195: 60.05 | J195: 433 | L195: =L184+L194 -> 66.76
C196: Среднее значение за период: | F196: =(F24+F43+F62+F81+F100+F119+F138+F157+F176+F195)/(IF(F24=0,0,1)+IF(F43=0,0,1)+IF(F62=0,0,1)+IF(F81=0,0,1)+IF(F100=0,0,1)+IF(F119=0,0,1)+IF(F138=0,0,1)+IF(F157=0,0,1)+IF(F176=0,0,1)+IF(F195=0,0,1)) -> 506.8 | G196: 18.705 | H196: 19.314 | I196: 71.342 | J196: 560.9 | L196: =(L24+L43+L62+L81+L100+L119+L138+L157+L176+L195)/(IF(L24=0,0,1)+IF(L43=0,0,1)+IF(L62=0,0,1)+IF(L81=0,0,1)+IF(L100=0,0,1)+IF(L119=0,0,1)+IF(L138=0,0,1)+IF(L157=0,0,1)+IF(L176=0,0,1)+IF(L195=0,0,1)) -> 66.76
